bitfinex-derivatives/quotes_BTCF0:USTF0_20251011
["timestamp","ask_amount","ask_price","bid_price","bid_amount"]
[1760148575626,0.06417791,111760.0,111750.0,0.01757]
[1760148575831,0.4501878,111770.0,111760.0,0.01757]
[1760148576138,0.0893907,111760.0,111750.0,0.01757]
[1760148576332,0.15335631,111770.0,111750.0,0.37837]
[1760148576531,0.15335631,111770.0,111760.0,0.01757]
[1760148576733,0.80501796,111780.0,111760.0,0.37837]
[1760148576932,0.50817553,111780.0,111770.0,0.37837]
[1760148577235,0.50817501,111780.0,111770.0,0.36674008]
[1760148577426,0.35483906,111790.0,111770.0,0.36674008]
[1760148577630,0.07942478,111780.0,111770.0,0.36674008]
[1760148577836,0.15332849,111780.0,111770.0,0.72754008]
[1760148578031,0.06395439,111780.0,111770.0,0.72754008]
[1760148578638,0.06395439,111780.0,111770.0,1.12754008]
[1760148578838,0.15332109,111790.0,111770.0,1.12754008]
[1760148579042,0.15332109,111790.0,111770.0,0.72754008]
[1760148579241,0.0893743,111780.0,111770.0,0.72754008]
[1760148579554,0.0893743,111780.0,111770.0,0.36674008]
[1760148579847,1.17959345,111780.0,111750.0,0.37837]
[1760148580140,0.0893916,111760.0,111750.0,0.37837]
[1760148580345,0.15333909,111770.0,111760.0,0.01697]
[1760148580546,0.0479464,111770.0,111760.0,0.77777]
[1760148580839,0.50816375,111790.0,111770.0,0.01697]
[1760148580840,0.15332749,111780.0,111770.0,0.01697]
[1760148581148,0.0893731,111780.0,111770.0,0.37777]
[1760148581446,0.0893731,111780.0,111770.0,0.01697]
[1760148582239,0.0893731,111780.0,111770.0,0.37777]
[1760148582545,0.04792885,111780.0,111770.0,0.77777]
[1760148582743,0.04792885,111780.0,111770.0,0.37777]
[1760148583348,0.13730895,111780.0,111770.0,0.37777]
[1760148583747,0.0893801,111780.0,111770.0,0.01697]
[1760148584349,0.13729562,111780.0,111770.0,0.37777]
[1760148584945,0.3993801,111780.0,111770.0,0.01697]
[1760148585146,0.12132451,111780.0,111770.0,0.01697]
[1760148585544,0.12132451,111780.0,111770.0,0.37777]
[1760148585744,0.03194441,111780.0,111770.0,0.77777]
[1760148586142,0.03194441,111780.0,111770.0,0.37777]
[1760148587749,0.12132481,111780.0,111770.0,0.37777]
[1760148588150,0.13729702,111780.0,111770.0,0.37777]
[1760148588651,0.04791662,111780.0,111770.0,0.37777]
[1760148589153,0.13729702,111780.0,111770.0,0.37777]
[1760148589851,0.13729702,111780.0,111770.0,0.01697]
[1760148590352,0.03197674,111780.0,111770.0,0.77777]
[1760148590555,0.03197674,111790.0,111780.0,0.01659]
[1760148590752,0.03197674,111800.0,111790.0,0.01659]
[1760148590953,0.03197674,111800.0,111790.0,0.77739]
[1760148591155,0.03197674,111810.0,111800.0,0.01659]
[1760148591349,0.12132634,111820.0,111810.0,0.01659]
[1760148591552,0.12130377,111830.0,111810.0,0.37739]
[1760148591745,0.12130377,111830.0,111820.0,0.37739]
[1760148591951,0.12130377,111830.0,111820.0,0.01659]
[1760148593053,0.0893436,111830.0,111820.0,0.01659]
[1760148593558,0.0893436,111830.0,111820.0,0.37739]
[1760148594655,0.47613433,111840.0,111830.0,0.01659]
[1760148594851,0.34129527,111840.0,111830.0,0.01659]
[1760148595750,0.34129527,111840.0,111820.0,0.37739]
[1760148595751,0.0893409,111830.0,111820.0,0.37739]
[1760148595957,0.0893489,111820.0,111810.0,0.01659]
[1760148596154,0.0893648,111800.0,111790.0,0.37739]
[1760148597457,0.0893648,111800.0,111790.0,0.01659]
[1760148597657,0.12130751,111810.0,111790.0,0.37739]
[1760148597956,0.03194741,111810.0,111800.0,0.37739]
[1760148598159,0.51409839,111830.0,111820.0,0.01659]
[1760148598160,0.13726062,111830.0,111820.0,0.01659]
[1760148598460,0.13725532,111840.0,111830.0,0.01659]
[1760148598660,0.3093387,111840.0,111830.0,0.01659]
[1760148598853,0.6701387,111840.0,111830.0,0.01659]
[1760148599057,0.0893409,111830.0,111820.0,0.01659]
[1760148599654,0.0893488,111820.0,111810.0,0.01659]
[1760148599858,0.0893488,111820.0,111810.0,0.37739]
[1760148600760,0.03194668,111840.0,111830.0,0.01659]
[1760148600954,0.12127958,111840.0,111830.0,0.01659]
[1760148601856,0.0893488,111820.0,111810.0,0.37739]
[1760148602059,0.0893568,111810.0,111800.0,0.01659]
[1760148602255,0.0893648,111800.0,111790.0,0.37739]
[1760148602561,0.0893568,111810.0,111780.0,0.37739]
[1760148602562,0.0893728,111790.0,111780.0,0.37739]
[1760148603062,0.0893728,111790.0,111780.0,0.01659]
[1760148603262,0.0893808,111780.0,111770.0,0.01659]
[1760148603465,0.0893808,111780.0,111770.0,0.37739]
[1760148604056,0.0893568,111810.0,111790.0,0.01659]
[1760148604057,0.40871662,111810.0,111790.0,0.01659]
[1760148604256,0.13727002,111820.0,111800.0,0.37739]
[1760148604460,0.0893568,111810.0,111800.0,0.37739]
[1760148604761,0.0893568,111810.0,111800.0,0.01659]
[1760148604964,0.0893568,111810.0,111800.0,0.37739]
[1760148606264,0.0893568,111810.0,111800.0,0.01659]
[1760148607154,0.04791662,111820.0,111810.0,0.01659]
[1760148607355,0.13725242,111840.0,111830.0,0.01659]
[1760148607555,0.16725242,111840.0,111830.0,0.01659]
[1760148607761,0.16725242,111840.0,111830.0,0.37739]
[1760148607959,0.16725242,111840.0,111830.0,0.01659]
[1760148608752,0.0893409,111830.0,111820.0,0.37739]
[1760148609152,0.0893489,111820.0,111810.0,0.01659]
[1760148609356,0.0893568,111810.0,111800.0,0.01659]
[1760148609558,0.0893648,111800.0,111790.0,0.01654]
[1760148609959,0.80500386,111800.0,111770.0,0.01654]
[1760148610162,0.0893808,111780.0,111770.0,0.37734]
[1760148610663,0.0893808,111780.0,111770.0,0.01654]
[1760148611060,0.13729742,111780.0,111770.0,0.01654]
[1760148612866,0.13729312,111790.0,111770.0,0.37734]
[1760148613168,0.0893677,111800.0,111790.0,0.01654]
[1760148613357,0.13739982,111800.0,111790.0,0.01654]
[1760148613562,0.13739982,111800.0,111790.0,0.37734]
[1760148613958,0.49819982,111800.0,111790.0,0.01654]
[1760148614158,0.0893728,111790.0,111780.0,0.01654]
[1760148614367,0.0893728,111790.0,111770.0,0.01654]
[1760148614368,0.0893808,111780.0,111770.0,0.01654]
[1760148614770,0.0893888,111770.0,111760.0,0.37734]
[1760148615267,0.13742092,111770.0,111760.0,0.37734]
[1760148616167,0.13742092,111770.0,111760.0,0.01654]
[1760148616368,0.0893968,111760.0,111750.0,0.3774215]
[1760148617568,0.95342931,111760.0,111750.0,8.15e-05]
[1760148617766,1.33015158,111760.0,111750.0,8.15e-05]
[1760148617967,1.37015158,111760.0,111750.0,8.15e-05]
[1760148618166,1.51865158,111760.0,111750.0,8.15e-05]
[1760148618361,0.0894128,111740.0,111720.0,0.01654]
[1760148618580,0.0894208,111730.0,111720.0,0.01654]
[1760148618776,0.0894288,111720.0,111710.0,0.37734]
[1760148619268,0.0895103,111720.0,111710.0,0.37734]
[1760148619465,0.0895103,111720.0,111710.0,0.41654]
[1760148619668,0.0894368,111710.0,111700.0,0.37734]
[1760148619873,0.0894368,111710.0,111700.0,0.01654]
[1760148620077,0.0894448,111700.0,111690.0,0.01654]
[1760148620264,0.0894528,111690.0,111680.0,0.01654]
[1760148620469,0.0895343,111690.0,111680.0,0.01654]
[1760148620669,0.0894608,111680.0,111670.0,0.37734]
[1760148620866,0.0895423,111680.0,111670.0,0.37734]
[1760148621174,0.0894688,111670.0,111660.0,0.37734]
[1760148621775,0.50545819,111690.0,111670.0,0.01654]
[1760148621970,0.41600039,111690.0,111670.0,0.01654]
[1760148622165,0.089454,111690.0,111670.0,0.37734]
[1760148622368,0.089454,111690.0,111680.0,0.37734]
[1760148622771,0.0894448,111700.0,111690.0,0.01654]
[1760148623077,0.50544519,111700.0,111690.0,0.01654]
[1760148623275,0.86624519,111700.0,111690.0,0.01654]
[1760148623578,0.86624519,111700.0,111680.0,0.37734]
[1760148623579,0.0894528,111690.0,111680.0,0.01654]
[1760148623770,0.0894608,111680.0,111670.0,0.37734]
[1760148623970,0.0894608,111680.0,111670.0,0.01654]
[1760148624374,0.0894688,111670.0,111660.0,0.37734]
[1760148624677,0.0894626,111680.0,111670.0,0.01654]
[1760148624866,0.0894626,111680.0,111670.0,0.37734]
[1760148625676,0.0894626,111680.0,111670.0,0.01654]
[1760148626173,0.4502582,111690.0,111670.0,0.01654]
[1760148626375,0.0894575,111690.0,111680.0,0.37734]
[1760148627378,0.0894608,111680.0,111670.0,0.37734]
[1760148627584,0.0894608,111680.0,111670.0,0.01654]
[1760148628269,0.0894688,111670.0,111660.0,0.37734]
[1760148628466,0.0894768,111660.0,111650.0,0.01662689]
[1760148628671,0.0894768,111660.0,111650.0,0.37742689]
[1760148629177,0.089472,111670.0,111660.0,0.01654]
[1760148629376,0.0894641,111680.0,111660.0,0.37734]
[1760148629573,0.0894559,111690.0,111670.0,0.37734]
[1760148629774,0.0894608,111680.0,111670.0,0.37734]
[1760148629975,0.0894608,111680.0,111670.0,0.01654]
[1760148630369,0.4502608,111680.0,111670.0,0.01654]
[1760148630583,0.0894528,111690.0,111680.0,0.01654]
[1760148630778,0.0894528,111690.0,111680.0,0.37734]
[1760148631175,0.4502528,111690.0,111680.0,0.01654]
[1760148631375,0.8502528,111690.0,111680.0,0.01654]
[1760148631678,0.0894608,111680.0,111670.0,0.37734]
[1760148633182,0.0894608,111680.0,111670.0,0.77734]
[1760148633784,0.0904608,111680.0,111670.0,0.37734]
[1760148634380,0.0904608,111680.0,111670.0,0.77734]
[1760148634678,0.001,111680.0,111670.0,1.19334039]
[1760148635181,0.001,111680.0,111670.0,0.77734]
[1760148636379,0.2379402,111710.0,111700.0,0.01654]
[1760148636580,0.2379402,111710.0,111700.0,0.37734]
[1760148636777,0.1485,111710.0,111700.0,0.37734]
[1760148636984,0.2379368,111710.0,111700.0,0.37734]
[1760148637683,0.2389368,111710.0,111700.0,0.37734]
[1760148637980,0.001,111710.0,111700.0,1.28278519]
[1760148638177,0.2379211,111730.0,111720.0,0.01726]
[1760148638376,0.089419,111740.0,111730.0,0.01726]
[1760148638581,0.0894063,111750.0,111730.0,0.37806]
[1760148638782,0.2579063,111750.0,111740.0,0.37806]
[1760148638979,0.2579063,111750.0,111740.0,0.01726]
[1760148639279,0.6187063,111750.0,111740.0,0.01726]
[1760148639482,0.0894128,111740.0,111730.0,0.37806]
[1760148640484,0.2379128,111740.0,111730.0,0.01726]
[1760148640783,0.0894208,111730.0,111720.0,0.01726]
[1760148640980,0.0894288,111720.0,111710.0,0.37806]
[1760148641377,0.2379177,111740.0,111730.0,0.01726]
[1760148641578,0.4502097,111750.0,111730.0,0.37806]
[1760148641887,0.6587097,111750.0,111740.0,0.01726]
[1760148643180,0.06,111750.0,111740.0,0.37806]
[1760148643489,0.0893992,111760.0,111750.0,0.01726]
[1760148643779,0.1093968,111760.0,111750.0,0.37806]
[1760148644179,0.02,111760.0,111750.0,0.37806]
[1760148644779,0.1093967,111760.0,111750.0,0.01726]
[1760148645085,0.1411512,111760.0,111750.0,0.01726]
[1760148645782,0.0517545,111760.0,111750.0,0.40795]
[1760148646184,0.0317545,111770.0,111760.0,0.01726]
[1760148646479,0.0317545,111770.0,111760.0,0.40795]
[1760148646480,0.0417545,111770.0,111760.0,0.40795]
[1760148646687,0.0317545,111770.0,111760.0,0.40795]
[1760148646988,0.1211433,111770.0,111760.0,0.40795]
[1760148647882,0.1211379,111780.0,111760.0,0.37806]
[1760148648084,0.0893887,111770.0,111760.0,0.37806]
[1760148648285,0.86618909,111770.0,111760.0,0.01726]
[1760148648487,0.0893967,111760.0,111750.0,0.01726]
[1760148649586,0.0894047,111750.0,111740.0,0.37806]
[1760148649782,0.50540509,111750.0,111740.0,0.37806]
[1760148649990,0.50540509,111750.0,111730.0,0.37806]
[1760148649991,0.0894127,111740.0,111730.0,0.37806]
[1760148650388,0.0894127,111740.0,111730.0,0.01726]
[1760148651293,0.0894127,111740.0,111730.0,0.37806]
[1760148651584,0.53716439,111750.0,111730.0,0.37806]
[1760148651790,0.04802,111760.0,111750.0,0.01677]
[1760148652084,0.12130143,111770.0,111750.0,0.37757]
[1760148652287,0.12130143,111770.0,111760.0,0.37757]
[1760148652688,0.03191193,111770.0,111760.0,0.37757]
[1760148652878,0.1374031,111780.0,111760.0,0.37757]
[1760148652879,0.12129503,111780.0,111770.0,0.01677]
[1760148653083,0.12129503,111780.0,111770.0,0.37757]
[1760148653687,0.07993193,111790.0,111770.0,0.77757]
[1760148653987,0.03191193,111790.0,111780.0,0.37757]
[1760148654380,0.16929853,111800.0,111790.0,0.01677]
[1760148654578,0.16929853,111800.0,111790.0,0.37757]
[1760148654786,0.12127853,111800.0,111790.0,0.37757]
[1760148655380,0.0893666,111800.0,111790.0,0.37757]
[1760148655780,0.2378666,111800.0,111790.0,0.37757]
[1760148655981,0.0893727,111790.0,111780.0,0.37757]
[1760148656186,0.0893807,111780.0,111770.0,0.37757]
[1760148657386,0.32738109,111790.0,111770.0,0.37757]
[1760148657585,0.41675389,111790.0,111780.0,0.01677]
[1760148657785,0.0893808,111780.0,111770.0,0.01677]
[1760148657986,0.0893887,111770.0,111760.0,0.01677]
[1760148658188,0.50538549,111780.0,111770.0,0.01677]
[1760148658490,0.0893851,111780.0,111770.0,0.01677]
[1760148658693,0.0893851,111780.0,111770.0,0.37757]
[1760148659888,0.0893851,111780.0,111770.0,0.01677]
[1760148660096,0.0893851,111780.0,111760.0,0.37757]
[1760148660097,0.0893887,111770.0,111760.0,0.01677]
[1760148660290,0.50538909,111770.0,111760.0,0.01677]
[1760148660792,1.26618909,111770.0,111760.0,0.01677]
[1760148660985,0.0893967,111760.0,111750.0,0.37757]
[1760148661182,0.50539709,111760.0,111750.0,0.37757]
[1760148661789,0.0894047,111750.0,111740.0,0.01677]
[1760148661989,0.50540509,111750.0,111740.0,0.01677]
[1760148662197,0.0894127,111740.0,111730.0,0.37757]
[1760148662384,0.089408,111750.0,111740.0,0.01677]
[1760148662690,0.68580112,111770.0,111760.0,0.01677]
[1760148662890,0.0893968,111760.0,111750.0,0.01677]
[1760148663192,0.0893968,111760.0,111750.0,0.37757]
[1760148663193,0.50539719,111760.0,111750.0,0.37757]
[1760148663389,0.03191193,111760.0,111750.0,0.37757]
[1760148663591,0.12130613,111770.0,111760.0,0.01677]
[1760148663786,0.90539459,111770.0,111760.0,0.01677]
[1760148663994,0.50539459,111770.0,111760.0,0.37757]
[1760148664192,0.0893942,111770.0,111760.0,0.37757]
[1760148664495,0.12130613,111770.0,111760.0,0.37757]
[1760148664895,0.0893968,111760.0,111750.0,0.01677]
[1760148665090,0.53730912,111760.0,111750.0,0.37757]
[1760148665294,0.55341719,111760.0,111750.0,0.01677]
[1760148665495,0.1374168,111760.0,111750.0,0.01677]
[1760148665697,0.95341719,111760.0,111750.0,0.01677]
[1760148665896,0.0894048,111750.0,111740.0,0.01677]
[1760148666096,0.55343402,111750.0,111740.0,0.01677]
[1760148666288,0.0894128,111740.0,111730.0,0.37757]
[1760148666493,0.50541319,111740.0,111730.0,0.01677]
[1760148666689,0.0894208,111730.0,111720.0,0.37757]
[1760148666997,0.50542119,111730.0,111720.0,0.01677]
[1760148667199,0.0894288,111720.0,111710.0,0.37757]
[1760148667398,0.55352549,111720.0,111710.0,0.01677]
[1760148667593,0.0894368,111710.0,111700.0,0.01677]
[1760148667795,0.06412807,111710.0,111700.0,0.01677]
[1760148667990,1.33036526,111710.0,111700.0,0.01677]
[1760148668197,0.96956526,111710.0,111700.0,0.01677]
[1760148668397,0.88012846,111710.0,111700.0,0.37757]
[1760148668598,0.95351307,111710.0,111700.0,0.37757]
[1760148668998,0.95251307,111710.0,111700.0,0.37757]
[1760148669795,0.53651268,111710.0,111700.0,0.37757]
[1760148670006,0.95251307,111710.0,111700.0,0.01677]
[1760148670199,0.0894448,111700.0,111690.0,0.37757]
[1760148670400,0.0894448,111700.0,111680.0,0.01677]
[1760148670401,0.0894528,111690.0,111680.0,0.01677]
[1760148670703,0.55349114,111690.0,111680.0,0.37857]
[1760148671003,0.55349114,111690.0,111680.0,0.01777]
[1760148671193,0.13749075,111690.0,111680.0,0.37857]
[1760148671398,0.55349114,111690.0,111680.0,0.37857]
[1760148672097,0.42949114,111690.0,111680.0,0.37857]
[1760148672799,0.51994394,111690.0,111680.0,0.37857]
[1760148673996,1.26645319,111690.0,111680.0,0.001]
[1760148674201,0.0894608,111680.0,111670.0,0.37757]
[1760148674401,0.50546119,111680.0,111670.0,0.001]
[1760148674601,0.0894608,111680.0,111670.0,0.001]
[1760148674797,1.50680039,111680.0,111650.0,0.37844689]
[1760148675009,0.4502688,111670.0,111660.0,0.001]
[1760148675301,0.4502688,111670.0,111650.0,0.01864689]
[1760148675302,0.0894769,111660.0,111650.0,0.01864689]
[1760148676199,0.44466848,111660.0,111650.0,0.01864689]
[1760148676702,0.44466848,111660.0,111650.0,0.37944689]
[1760148677002,0.001,111660.0,111650.0,0.37944689]
[1760148677206,0.001,111660.0,111650.0,0.86893139]
[1760148677395,0.12139536,111700.0,111680.0,0.01756]
[1760148677594,0.01,111700.0,111690.0,0.37836]
[1760148677800,0.0894331,111720.0,111710.0,0.01756]
[1760148678006,0.03,111720.0,111710.0,0.3608]
[1760148678305,0.74794094,111730.0,111720.0,0.01756]
[1760148678306,0.35519158,111730.0,111720.0,0.01756]
[1760148678504,0.35519158,111730.0,111720.0,0.37836]
[1760148678803,0.44459638,111750.0,111730.0,0.01756]
[1760148679006,0.0894126,111740.0,111730.0,0.37836]
[1760148679197,1.12599158,111750.0,111740.0,0.01756]
[1760148679198,0.44459888,111750.0,111740.0,0.01756]
[1760148679396,0.50459888,111750.0,111740.0,0.01756]
[1760148679910,0.0894126,111740.0,111730.0,0.37836]
[1760148680101,0.4104126,111740.0,111730.0,0.37836]
[1760148680403,0.0894206,111730.0,111720.0,0.37836]
[1760148680603,0.44461218,111730.0,111720.0,0.01756]
[1760148680799,0.0894286,111720.0,111710.0,0.37836]
[1760148681006,0.0894366,111710.0,111700.0,0.37836]
[1760148681205,0.0894313,111720.0,111710.0,0.01756]
[1760148681509,0.0894366,111710.0,111700.0,0.37836]
[1760148681702,0.71599158,111730.0,111700.0,0.37836]
[1760148681703,0.0894312,111720.0,111700.0,0.37836]
[1760148682410,0.0894366,111710.0,111700.0,0.37836]
[1760148682603,0.0894366,111710.0,111700.0,0.01756]
[1760148682604,0.44462818,111710.0,111700.0,0.01756]
[1760148682796,0.0894366,111710.0,111700.0,0.01756]
[1760148683002,0.0894366,111710.0,111690.0,0.37836]
[1760148683203,0.0894441,111710.0,111690.0,0.37836]
[1760148683409,0.80542268,111720.0,111700.0,0.01756]
[1760148683709,0.35519158,111720.0,111710.0,0.37836]
[1760148683900,0.44461998,111720.0,111710.0,0.37836]
[1760148684211,0.44461998,111720.0,111710.0,0.01756]
[1760148684401,0.0894284,111720.0,111710.0,0.37836]
[1760148684897,0.0894284,111720.0,111710.0,0.01756]
[1760148685103,0.83736454,111730.0,111710.0,0.37836]
[1760148685303,0.38714094,111730.0,111720.0,0.37836]
[1760148685603,0.03194936,111740.0,111720.0,0.37836]
[1760148685806,0.03194936,111740.0,111730.0,0.01756]
[1760148686003,0.12136186,111740.0,111730.0,0.37836]
[1760148686198,0.12136186,111740.0,111730.0,0.01756]
[1760148687300,0.56136186,111740.0,111730.0,0.01756]
[1760148687497,0.52136186,111740.0,111720.0,0.37836]
[1760148687699,0.12136186,111740.0,111730.0,0.01756]
[1760148687910,0.0894284,111720.0,111710.0,0.01756]
[1760148688099,0.44461458,111730.0,111720.0,0.01756]
[1760148688300,0.44461458,111730.0,111720.0,0.37836]
[1760148688706,0.089423,111730.0,111720.0,0.37836]
[1760148688902,0.089423,111730.0,111720.0,0.01756]
[1760148689302,0.089423,111730.0,111720.0,0.37836]
[1760148689507,0.090423,111730.0,111720.0,0.37836]
[1760148689702,0.001,111730.0,111710.0,0.3608]
[1760148689904,0.0894524,111690.0,111680.0,0.37836]
[1760148690109,0.0894524,111690.0,111680.0,0.01756]
[1760148690306,0.03197076,111700.0,111690.0,0.01756]
[1760148690504,0.39277076,111700.0,111690.0,0.01756]
[1760148690807,0.12141516,111700.0,111690.0,0.01756]
[1760148691013,0.03197076,111700.0,111690.0,0.37836]
[1760148691403,0.12141516,111700.0,111690.0,0.01756]
[1760148691808,1.23740674,111700.0,111690.0,0.01756]
[1760148692114,0.87660674,111700.0,111690.0,0.01756]
[1760148692309,0.47660674,111700.0,111690.0,0.01756]
[1760148692917,1.61341115,111700.0,111670.0,0.01756]
[1760148693118,0.0894604,111680.0,111670.0,0.37836]
[1760148693316,0.0894604,111680.0,111670.0,0.01756]
[1760148693514,0.03198944,111680.0,111670.0,0.37836]
[1760148693810,0.16941711,111690.0,111680.0,0.01756]
[1760148694016,0.12144194,111690.0,111680.0,0.01756]
[1760148694217,0.12144194,111690.0,111680.0,0.37836]
[1760148694520,0.12144194,111690.0,111680.0,0.01756]
[1760148694811,0.0894605,111680.0,111670.0,0.37836]
[1760148695018,0.0320118,111680.0,111670.0,0.37836]
[1760148695213,0.1214663,111690.0,111680.0,0.01756]
[1760148695520,0.1224663,111690.0,111680.0,0.37836]
[1760148696017,0.1214663,111690.0,111680.0,0.37836]
[1760148696815,0.0894605,111680.0,111670.0,0.01756]
[1760148697017,0.12148621,111680.0,111670.0,0.37836]
[1760148697218,0.12148621,111680.0,111670.0,0.01756]
[1760148697417,0.12148621,111680.0,111670.0,0.37836]
[1760148697614,0.03202571,111680.0,111670.0,0.37836]
[1760148697815,0.12148621,111680.0,111670.0,0.37836]
[1760148698521,0.48228621,111680.0,111670.0,0.01756]
[1760148698712,0.48148621,111680.0,111670.0,0.01756]
[1760148698912,0.0894764,111660.0,111650.0,0.01764689]
[1760148699115,0.12151191,111660.0,111650.0,0.01764689]
[1760148699316,0.12151191,111660.0,111650.0,0.37844689]
[1760148699717,0.12151191,111660.0,111650.0,0.77844689]
[1760148699918,0.12151191,111660.0,111650.0,0.37844689]
[1760148700220,0.03203551,111660.0,111650.0,0.37844689]
[1760148700421,0.08008878,111670.0,111660.0,0.01747]
[1760148700622,0.03203551,111670.0,111660.0,0.37827]
[1760148700818,0.03203551,111680.0,111670.0,0.01747]
[1760148701017,0.03203551,111680.0,111670.0,0.37827]
[1760148701517,0.13750867,111690.0,111670.0,0.37827]
[1760148701724,0.78011965,111710.0,111690.0,0.01747]
[1760148702017,0.3608,111700.0,111690.0,0.01747]
[1760148702221,0.0894528,111690.0,111680.0,0.37827]
[1760148702924,0.4894528,111690.0,111680.0,0.37827]
[1760148703627,0.0894528,111690.0,111680.0,0.37827]
[1760148703820,0.0894528,111690.0,111680.0,0.01747]
[1760148703821,0.8794528,111690.0,111680.0,0.01747]
[1760148704025,1.23464438,111690.0,111680.0,0.01747]
[1760148704227,0.44464438,111690.0,111680.0,0.01747]
[1760148704428,0.78111965,111710.0,111690.0,0.01747]
[1760148704624,0.0894448,111700.0,111690.0,0.01747]
[1760148704923,0.80542898,111710.0,111700.0,0.01747]
[1760148705123,0.82542898,111710.0,111700.0,0.01747]
[1760148705524,0.80542898,111710.0,111700.0,0.01747]
[1760148705726,0.82542898,111710.0,111700.0,0.01747]
[1760148706028,0.0894528,111690.0,111680.0,0.01747]
[1760148706217,0.44464438,111690.0,111680.0,0.01747]
[1760148706822,0.0894608,111680.0,111670.0,0.37827]
[1760148707028,0.44464748,111690.0,111670.0,0.37827]
[1760148707229,0.44464748,111690.0,111680.0,0.37827]
[1760148707726,0.0894559,111690.0,111680.0,0.37827]
[1760148708032,0.44464748,111690.0,111680.0,0.37827]
[1760148708234,0.0894559,111690.0,111680.0,0.37827]
[1760148709628,0.85464748,111690.0,111680.0,0.37827]
[1760148709931,0.0894688,111670.0,111660.0,0.01747]
[1760148711029,0.001,111690.0,111680.0,0.01594]
[1760148711223,0.001,111690.0,111680.0,0.37674]
[1760148711420,0.44463798,111700.0,111690.0,0.01594]
[1760148711625,0.0894464,111700.0,111690.0,0.01594]
[1760148711826,0.8502464,111700.0,111690.0,0.01594]
[1760148712025,0.8502464,111700.0,111680.0,0.01594]
[1760148712026,0.0894528,111690.0,111680.0,0.01594]
[1760148712234,0.80464438,111690.0,111680.0,0.01594]
[1760148712532,0.44464438,111690.0,111680.0,0.01594]
[1760148712834,0.35519158,111690.0,111680.0,0.01594]
[1760148713033,0.44464438,111690.0,111680.0,0.37674]
[1760148713841,0.44464438,111690.0,111670.0,0.37674]
[1760148713842,0.0894608,111680.0,111670.0,0.37674]
[1760148714131,0.0894608,111680.0,111670.0,0.01594]
[1760148714637,0.0894608,111680.0,111670.0,0.37674]
[1760148714834,0.0894608,111680.0,111670.0,0.01594]
[1760148715335,0.0904608,111680.0,111670.0,0.01594]
[1760148715530,0.001,111680.0,111670.0,0.01594]
[1760148715735,0.001,111680.0,111670.0,0.77674]
[1760148716230,0.0894476,111700.0,111670.0,0.77674]
[1760148716432,0.71599158,111710.0,111690.0,0.37674]
[1760148716632,0.0894476,111700.0,111690.0,0.37674]
[1760148717036,0.0894476,111700.0,111690.0,0.01594]
[1760148717334,0.4502476,111700.0,111690.0,0.01594]
[1760148717540,0.0894476,111700.0,111690.0,0.01594]
[1760148717838,0.0894528,111690.0,111680.0,0.01594]
[1760148718028,0.44464438,111690.0,111680.0,0.37674]
[1760148718234,0.44464438,111690.0,111680.0,0.01594]
[1760148718930,0.0894608,111680.0,111670.0,0.00430185]
[1760148719335,0.44465238,111680.0,111670.0,0.00430185]
[1760148719633,0.80545238,111680.0,111670.0,0.00430185]
[1760148719829,0.0894688,111670.0,111660.0,0.01747]
[1760148720026,0.0894688,111670.0,111660.0,0.37827]
[1760148720629,0.0904621,111680.0,111670.0,0.01594]
[1760148721033,0.0894621,111680.0,111670.0,0.37674]
[1760148721233,0.07942478,111690.0,111680.0,0.01594]
[1760148721434,0.07942478,111700.0,111680.0,0.37674]
[1760148721631,0.07942478,111700.0,111690.0,0.01594]
[1760148721934,0.52405576,111710.0,111700.0,0.01594]
[1760148722630,0.88485576,111710.0,111700.0,0.01594]
[1760148722834,0.0894528,111690.0,111680.0,0.01594]
[1760148723035,0.0894528,111690.0,111680.0,0.37674]
[1760148723938,0.0894608,111680.0,111670.0,0.37674]
[1760148724342,0.0894608,111680.0,111670.0,0.01594]
[1760148724835,0.0894608,111680.0,111660.0,0.01594]
[1760148724836,0.0894688,111670.0,111660.0,0.01594]
[1760148726043,0.4494688,111670.0,111660.0,0.01594]
[1760148726235,0.0894688,111670.0,111660.0,0.01594]
[1760148726736,0.0894769,111660.0,111650.0,0.37682689]
[1760148726939,0.15377924,111660.0,111650.0,0.01602689]
[1760148727135,0.15377924,111660.0,111650.0,0.37682689]
[1760148727335,0.15377924,111660.0,111650.0,0.01602689]
[1760148727633,0.06430234,111660.0,111650.0,0.37682689]
[1760148727842,0.15377314,111670.0,111660.0,0.01594]
[1760148728334,0.15377314,111670.0,111650.0,0.37682689]
[1760148728537,0.55377314,111670.0,111650.0,0.37682689]
[1760148728737,0.15377314,111670.0,111660.0,0.01719]
[1760148729136,0.0894708,111670.0,111660.0,0.00554905]
[1760148729538,0.4994708,111670.0,111660.0,0.00554905]
[1760148729739,0.0894708,111670.0,111660.0,0.36634905]
[1760148729933,0.0894708,111670.0,111650.0,0.37682689]
[1760148730236,0.15375278,111660.0,111650.0,0.37682689]
[1760148730940,0.93894436,111660.0,111650.0,8.689e-05]
[1760148731133,0.82194436,111660.0,111650.0,8.689e-05]
[1760148731333,1.18274436,111660.0,111650.0,8.689e-05]
[1760148731541,1.27222126,111660.0,111650.0,8.689e-05]
[1760148731738,0.84222126,111660.0,111650.0,8.689e-05]
[1760148732040,0.84222126,111660.0,111650.0,0.01727689]
[1760148732233,1.25222126,111660.0,111650.0,0.01727689]
[1760148732430,0.15375278,111660.0,111650.0,0.01727689]
[1760148732630,0.15375278,111660.0,111650.0,0.37807689]
[1760148733436,0.15475278,111660.0,111650.0,0.37807689]
[1760148733632,0.06527588,111660.0,111650.0,0.80603689]
[1760148733843,0.001,111660.0,111650.0,0.80603689]
[1760148734036,0.15374828,111670.0,111650.0,0.80603689]
[1760148734237,0.15374828,111670.0,111660.0,0.37799]
[1760148734645,0.06427588,111670.0,111660.0,0.40595]
[1760148734844,0.15374478,111670.0,111660.0,0.01719]
[1760148735043,0.0894689,111670.0,111660.0,0.37799]
[1760148735440,0.0894689,111670.0,111660.0,0.40595]
[1760148736135,0.15374478,111670.0,111660.0,0.39430995]
[1760148736447,0.15474478,111670.0,111660.0,0.39430995]
[1760148736741,0.02101768,111670.0,111660.0,0.79430995]
[1760148736946,0.04916902,111670.0,111660.0,0.79430995]
[1760148737246,0.05312837,111670.0,111660.0,0.79430995]
[1760148737947,0.03211069,111680.0,111670.0,0.04515]
[1760148738141,0.03211069,111690.0,111670.0,0.82286919]